[Event "*** Titled Tuesday Blitz"]
[Site "Chess.com"]
[Date "2018.05.01"]
[Round "3"]
[White "Keranke"]
[Black "Vamostodorecto"]
[Result "1-0"]
[WhiteElo "2676"]
[BlackElo "2380"]
[TimeControl "180+2"]
[EndTime "13:37:12 PDT"]
[Termination "Keranke won by resignation"]

1. d4 {[%clk 0:03:01.9]} 1... Nf6 {[%clk 0:02:48.7]} 2. c4 {[%clk 0:03:01.1]}
2... g6 {[%clk 0:02:49.5]} 3. g3 {[%clk 0:03:02]} 3... Bg7 {[%clk 0:02:48.2]} 4.
Bg2 {[%clk 0:03:03.4]} 4... d5 {[%clk 0:02:48.9]} 5. cxd5 {[%clk 0:03:03]} 5...
Nxd5 {[%clk 0:02:50.6]} 6. e4 {[%clk 0:03:04.9]} 6... Nb6 {[%clk 0:02:52]} 7.
Ne2 {[%clk 0:03:06.5]} 7... O-O {[%clk 0:02:50.8]} 8. O-O {[%clk 0:03:05.8]}
8... Na6 {[%clk 0:02:44.5]} 9. Nbc3 {[%clk 0:03:04.8]} 9... c5 {[%clk
0:02:43.9]} 10. d5 {[%clk 0:03:03.5]} 10... e6 {[%clk 0:02:38.9]} 11. h3 {[%clk
0:02:56.3]} 11... exd5 {[%clk 0:02:38.9]} 12. exd5 {[%clk 0:02:58.2]} 12... Bf5
{[%clk 0:02:16.3]} 13. d6 {[%clk 0:02:38.4]} 13... Qd7 {[%clk 0:02:10.1]} 14. g4
{[%clk 0:02:39.4]} 14... Be6 {[%clk 0:02:11.7]} 15. Bf4 {[%clk 0:02:35.7]} 15...
Nc4 {[%clk 0:02:09.9]} 16. b3 {[%clk 0:02:32.1]} 16... Ne5 {[%clk 0:02:07.5]}
17. Qd2 {[%clk 0:02:20.6]} 17... Rad8 {[%clk 0:02:03.5]} 18. Rad1 {[%clk
0:02:20]} 18... h5 {[%clk 0:01:58.6]} 19. Qe3 {[%clk 0:02:10.9]} 19... Nc6
{[%clk 0:00:55.5]} 20. gxh5 {[%clk 0:02:10.9]} 20... Nd4 {[%clk 0:00:51.5]} 21.
Nxd4 {[%clk 0:02:08.3]} 21... cxd4 {[%clk 0:00:50.6]} 22. Rxd4 {[%clk
0:02:10.2]} 22... Bxd4 {[%clk 0:00:46.3]} 23. Qxd4 {[%clk 0:02:12.1]} 23... f6
{[%clk 0:00:29.9]} 24. Nd5 {[%clk 0:02:02.3]} 24... Kg7 {[%clk 0:00:27.6]} 25.
h6+ {[%clk 0:02:00.5]} 25... Kh7 {[%clk 0:00:25.3]} 26. Nxf6+ {[%clk 0:02:01.2]}
26... Rxf6 {[%clk 0:00:26.9]} 27. Qxf6 {[%clk 0:02:03.1]} 27... Rf8 {[%clk
0:00:25.7]} 28. Qxf8 {[%clk 0:02:03.9]} 1-0

[Event "*** Titled Tuesday Blitz"]
[Site "Chess.com"]
[Date "2018.05.01"]
[Round "3"]
[White "capatl"]
[Black "Blitzstream"]
[Result "1/2-1/2"]
[WhiteElo "2514"]
[BlackElo "2487"]
[TimeControl "180+2"]
[EndTime "13:37:47 PDT"]
[Termination "Game drawn by repetition"]

1. c4 {[%clk 0:03:01.9]} 1... Nf6 {[%clk 0:02:59.2]} 2. Nc3 {[%clk 0:03:02.5]}
2... c6 {[%clk 0:02:55.6]} 3. Nf3 {[%clk 0:03:01.5]} 3... d5 {[%clk 0:02:56.4]}
4. cxd5 {[%clk 0:03:02.5]} 4... cxd5 {[%clk 0:02:57.5]} 5. d4 {[%clk 0:03:04.4]}
5... Nc6 {[%clk 0:02:58.7]} 6. Bf4 {[%clk 0:02:59.2]} 6... Qb6 {[%clk
0:02:54.5]} 7. Qb3 {[%clk 0:02:31.6]} 7... Qxb3 {[%clk 0:02:35.1]} 8. axb3
{[%clk 0:02:33.5]} 8... e6 {[%clk 0:02:00.6]} 9. e3 {[%clk 0:02:22.3]} 9... Bb4
{[%clk 0:01:57.6]} 10. Bb5 {[%clk 0:02:17.8]} 10... Bd7 {[%clk 0:01:54]} 11. Ra4
{[%clk 0:02:06.7]} 11... a5 {[%clk 0:01:30.1]} 12. Nd2 {[%clk 0:01:53.8]} 12...
O-O {[%clk 0:01:29.3]} 13. O-O {[%clk 0:01:41.6]} 13... Rfc8 {[%clk 0:01:29.9]}
14. Rfa1 {[%clk 0:01:41]} 14... b6 {[%clk 0:01:01.6]} 15. Kf1 {[%clk 0:01:33.8]}
15... Kf8 {[%clk 0:00:58]} 16. Ke1 {[%clk 0:01:34.7]} 16... Ke7 {[%clk
0:00:59.2]} 17. Kd1 {[%clk 0:01:33.6]} 17... h6 {[%clk 0:00:58.4]} 18. h3 {[%clk
0:01:32.8]} 18... g5 {[%clk 0:00:58.2]} 19. Bh2 {[%clk 0:01:30.4]} 19... Ne8
{[%clk 0:00:59.2]} 20. Na2 {[%clk 0:01:25.6]} 20... Bd6 {[%clk 0:00:57.3]} 21.
Bxd6+ {[%clk 0:01:19.8]} 21... Nxd6 {[%clk 0:00:59.2]} 22. Bd3 {[%clk
0:01:08.6]} 22... Na7 {[%clk 0:00:49.9]} 23. Ra3 {[%clk 0:01:08.5]} 23... Nab5
{[%clk 0:00:50.5]} 24. Ra4 {[%clk 0:01:08.4]} 24... Nc7 {[%clk 0:00:48.5]} 25.
Ra3 {[%clk 0:01:09]} 25... Ncb5 {[%clk 0:00:44]} 26. Ra4 {[%clk 0:01:09.2]}
26... Nc7 {[%clk 0:00:32.9]} 27. Ra3 {[%clk 0:01:09.1]} 27... Ncb5 {[%clk
0:00:28]} 1/2-1/2

[Event "*** Titled Tuesday Blitz"]
[Site "Chess.com"]
[Date "2018.05.01"]
[Round "3"]
[White "sergeikim"]
[Black "Federtiu"]
[Result "1-0"]
[WhiteElo "2364"]
[BlackElo "2510"]
[TimeControl "180+2"]
[EndTime "13:37:51 PDT"]
[Termination "sergeikim won by resignation"]

1. d4 {[%clk 0:03:00.5]} 1... g6 {[%clk 0:03:01.9]} 2. c4 {[%clk 0:03:00.4]}
2... Bg7 {[%clk 0:03:01.6]} 3. Nc3 {[%clk 0:03:00.9]} 3... d6 {[%clk 0:03:02]}
4. e4 {[%clk 0:03:00.2]} 4... Nf6 {[%clk 0:03:02.5]} 5. Nge2 {[%clk 0:03:00.4]}
5... O-O {[%clk 0:02:59.8]} 6. Ng3 {[%clk 0:03:01.1]} 6... Na6 {[%clk
0:02:54.8]} 7. Be2 {[%clk 0:03:00.1]} 7... c5 {[%clk 0:02:54.4]} 8. d5 {[%clk
0:03:00.3]} 8... e6 {[%clk 0:02:55.6]} 9. O-O {[%clk 0:03:00.1]} 9... exd5
{[%clk 0:02:56.1]} 10. cxd5 {[%clk 0:03:00.9]} 10... Nc7 {[%clk 0:02:56.5]} 11.
a4 {[%clk 0:03:01.1]} 11... Re8 {[%clk 0:02:55.6]} 12. Bf4 {[%clk 0:03:01]}
12... h5 {[%clk 0:02:47.2]} 13. Bg5 {[%clk 0:03:00.8]} 13... Re5 {[%clk
0:02:47.1]} 14. Qd2 {[%clk 0:02:59.6]} 14... Qe7 {[%clk 0:02:25.9]} 15. h4
{[%clk 0:02:27.4]} 15... Bd7 {[%clk 0:02:05.3]} 16. Rae1 {[%clk 0:02:13.6]}
16... Re8 {[%clk 0:01:49.5]} 17. f4 {[%clk 0:02:14]} 17... Rxg5 {[%clk
0:01:39.2]} 18. hxg5 {[%clk 0:02:06.5]} 18... Ng4 {[%clk 0:01:40.3]} 19. e5
{[%clk 0:01:53.5]} 19... Nxe5 {[%clk 0:00:31.3]} 20. fxe5 {[%clk 0:01:44.2]}
20... Bxe5 {[%clk 0:00:32.8]} 21. Nge4 {[%clk 0:01:32.6]} 21... Bd4+ {[%clk
0:00:33.9]} 22. Kh1 {[%clk 0:01:28.2]} 22... Nxd5 {[%clk 0:00:34.4]} 23. Bc4
{[%clk 0:01:14.5]} 23... Bxc3 {[%clk 0:00:11.5]} 24. bxc3 {[%clk 0:01:13.5]} 1-0

[Event "*** Titled Tuesday Blitz"]
[Site "Chess.com"]
[Date "2018.05.01"]
[Round "3"]
[White "Keaton87"]
[Black "tomsishere"]
[Result "1-0"]
[WhiteElo "2452"]
[BlackElo "2366"]
[TimeControl "180+2"]
[EndTime "13:37:54 PDT"]
[Termination "Keaton87 won by resignation"]

1. d4 {[%clk 0:03:01.9]} 1... Nf6 {[%clk 0:02:59.5]} 2. Nf3 {[%clk 0:02:57.1]}
2... g6 {[%clk 0:02:59.9]} 3. Bf4 {[%clk 0:02:57.8]} 3... Bg7 {[%clk 0:03:00.7]}
4. e3 {[%clk 0:02:59.2]} 4... d6 {[%clk 0:03:01.1]} 5. Be2 {[%clk 0:03:00.4]}
5... Nh5 {[%clk 0:03:00.3]} 6. Bg5 {[%clk 0:03:00.7]} 6... h6 {[%clk 0:03:00.8]}
7. Bh4 {[%clk 0:03:01.9]} 7... g5 {[%clk 0:02:56.9]} 8. Nfd2 {[%clk 0:03:02.2]}
8... Nf6 {[%clk 0:02:54]} 9. Bg3 {[%clk 0:03:03.2]} 9... c5 {[%clk 0:02:49.1]}
10. c3 {[%clk 0:02:58.3]} 10... Nbd7 {[%clk 0:02:45.7]} 11. O-O {[%clk
0:02:58.6]} 11... Rb8 {[%clk 0:02:39.7]} 12. e4 {[%clk 0:02:56.5]} 12... h5
{[%clk 0:02:30]} 13. h3 {[%clk 0:02:38.9]} 13... e5 {[%clk 0:02:26.8]} 14. Nc4
{[%clk 0:02:29.6]} 14... Nxe4 {[%clk 0:02:22.8]} 15. Bd3 {[%clk 0:02:27.4]}
15... Nxg3 {[%clk 0:01:59]} 16. Nxd6+ {[%clk 0:02:24.8]} 16... Ke7 {[%clk
0:01:46.5]} 17. Nxc8+ {[%clk 0:02:21.4]} 17... Rxc8 {[%clk 0:01:45.5]} 18. fxg3
{[%clk 0:02:22.6]} 18... Qb6 {[%clk 0:01:42.2]} 19. Qf3 {[%clk 0:02:14.9]} 19...
Rhf8 {[%clk 0:01:37.4]} 20. Nd2 {[%clk 0:02:15.1]} 20... cxd4 {[%clk 0:01:35.5]}
21. cxd4 {[%clk 0:01:43.9]} 21... Qxd4+ {[%clk 0:01:34.6]} 22. Kh1 {[%clk
0:01:44.8]} 22... Nc5 {[%clk 0:01:34.6]} 23. Bf5 {[%clk 0:01:13.1]} 23... Rcd8
{[%clk 0:01:31.9]} 24. Nb3 {[%clk 0:01:12]} 24... e4 {[%clk 0:01:14.5]} 25. Rae1
{[%clk 0:01:03.2]} 25... Be5 {[%clk 0:01:11]} 26. Nxd4 {[%clk 0:00:56.4]} 26...
exf3 {[%clk 0:01:11.2]} 27. Rxe5+ {[%clk 0:00:57]} 27... Kf6 {[%clk 0:01:11.9]}
28. Rxc5 {[%clk 0:00:57.5]} 28... Rxd4 {[%clk 0:01:10.9]} 29. Rxf3 {[%clk
0:00:56.4]} 29... g4 {[%clk 0:01:09.7]} 30. Bxg4+ {[%clk 0:00:56.1]} 30... Kg7
{[%clk 0:01:08.9]} 31. Rxh5 {[%clk 0:00:54.9]} 31... Rd1+ {[%clk 0:01:05.4]} 32.
Kh2 {[%clk 0:00:55.6]} 32... Rb1 {[%clk 0:01:04.7]} 33. Rg5+ {[%clk 0:00:55]}
33... Kh6 {[%clk 0:01:04]} 34. h4 {[%clk 0:00:55.9]} 34... Re8 {[%clk
0:01:01.9]} 35. Rf6+ {[%clk 0:00:56.2]} 35... Kh7 {[%clk 0:01:02.3]} 36. Bf5+
{[%clk 0:00:57.5]} 1-0

[Event "*** Titled Tuesday Blitz"]
[Site "Chess.com"]
[Date "2018.05.01"]
[Round "3"]
[White "gemarin"]
[Black "el-reptiliano"]
[Result "0-1"]
[WhiteElo "1854"]
[BlackElo "1617"]
[TimeControl "180+2"]
[EndTime "13:38:08 PDT"]
[Termination "el-reptiliano won on time"]

1. d4 {[%clk 0:03:01.9]} 1... d5 {[%clk 0:02:58.9]} 2. c4 {[%clk 0:03:02.7]}
2... dxc4 {[%clk 0:02:57.5]} 3. Nf3 {[%clk 0:03:01.6]} 3... Nf6 {[%clk
0:02:51.9]} 4. e3 {[%clk 0:02:54.2]} 4... b5 {[%clk 0:02:51.6]} 5. a4 {[%clk
0:02:52.7]} 5... b4 {[%clk 0:02:52.9]} 6. Bxc4 {[%clk 0:02:52]} 6... e6 {[%clk
0:02:52.2]} 7. O-O {[%clk 0:02:46.5]} 7... Be7 {[%clk 0:02:52.9]} 8. b3 {[%clk
0:02:47]} 8... O-O {[%clk 0:02:53.6]} 9. Nbd2 {[%clk 0:02:46.9]} 9... Bb7 {[%clk
0:02:54.3]} 10. Bb2 {[%clk 0:02:47.4]} 10... Nbd7 {[%clk 0:02:52.8]} 11. Qe2
{[%clk 0:02:47.8]} 11... c5 {[%clk 0:02:53.2]} 12. Rfd1 {[%clk 0:02:46.1]} 12...
Rc8 {[%clk 0:02:31.7]} 13. Rac1 {[%clk 0:02:37.2]} 13... Qc7 {[%clk 0:02:17.7]}
14. e4 {[%clk 0:02:30.3]} 14... Qb8 {[%clk 0:01:45.3]} 15. Ne5 {[%clk
0:02:18.9]} 15... Nxe5 {[%clk 0:01:32.4]} 16. dxe5 {[%clk 0:02:18.5]} 16... Nd7
{[%clk 0:01:34.1]} 17. Nf3 {[%clk 0:02:17.3]} 17... Nb6 {[%clk 0:01:31.2]} 18.
Bb5 {[%clk 0:02:15.8]} 18... a5 {[%clk 0:01:19.7]} 19. Nd2 {[%clk 0:01:56.7]}
19... Rfd8 {[%clk 0:01:07.5]} 20. f4 {[%clk 0:01:49.9]} 20... Qa8 {[%clk
0:00:58.8]} 21. Re1 {[%clk 0:01:42.1]} 21... Qa7 {[%clk 0:00:51.2]} 22. Kh1
{[%clk 0:01:41.8]} 22... Qa8 {[%clk 0:00:52]} 0-1

[Event "*** Titled Tuesday Blitz"]
[Site "Chess.com"]
[Date "2018.05.01"]
[Round "3"]
[White "Orest_Vovk"]
[Black "dhanushbharadwaj"]
[Result "1-0"]
[WhiteElo "2476"]
[BlackElo "2517"]
[TimeControl "180+2"]
[EndTime "13:38:10 PDT"]
[Termination "Orest_Vovk won by resignation"]

1. g4 {[%clk 0:03:01.9]} 1... c6 {[%clk 0:02:59.2]} 2. Bg2 {[%clk 0:03:02.2]}
2... d5 {[%clk 0:02:59.9]} 3. h3 {[%clk 0:03:03.2]} 3... g6 {[%clk 0:03:00.1]}
4. d4 {[%clk 0:03:03.9]} 4... Bg7 {[%clk 0:03:01.2]} 5. Nf3 {[%clk 0:03:05.3]}
5... Nd7 {[%clk 0:03:00.7]} 6. Bf4 {[%clk 0:03:06.5]} 6... Ngf6 {[%clk
0:02:59.1]} 7. O-O {[%clk 0:03:06.7]} 7... O-O {[%clk 0:02:59.4]} 8. Ne5 {[%clk
0:03:06.7]} 8... Re8 {[%clk 0:02:59.6]} 9. Nd2 {[%clk 0:03:03.6]} 9... c5 {[%clk
0:02:57.8]} 10. c3 {[%clk 0:03:03.4]} 10... cxd4 {[%clk 0:02:58]} 11. cxd4
{[%clk 0:03:03.9]} 11... Nxe5 {[%clk 0:02:59]} 12. Bxe5 {[%clk 0:03:04.8]} 12...
e6 {[%clk 0:02:57.2]} 13. Qb3 {[%clk 0:03:00.8]} 13... Nd7 {[%clk 0:02:56.5]}
14. Bxg7 {[%clk 0:03:01.2]} 14... Kxg7 {[%clk 0:02:58.4]} 15. Rac1 {[%clk
0:03:00.3]} 15... Nb6 {[%clk 0:02:56.7]} 16. a4 {[%clk 0:02:49.1]} 16... a5
{[%clk 0:02:51.3]} 17. Qc2 {[%clk 0:02:35.4]} 17... Bd7 {[%clk 0:02:48.1]} 18.
b3 {[%clk 0:02:36.2]} 18... Rc8 {[%clk 0:02:45.8]} 19. Qd3 {[%clk 0:02:36.9]}
19... Qe7 {[%clk 0:02:44.3]} 20. Nf3 {[%clk 0:02:21.7]} 20... Qa3 {[%clk
0:02:40.4]} 21. Qe3 {[%clk 0:02:19.8]} 21... Rxc1 {[%clk 0:02:11.2]} 22. Rxc1
{[%clk 0:02:18.3]} 22... Rc8 {[%clk 0:02:12.2]} 23. Rc5 {[%clk 0:02:07.1]} 23...
h6 {[%clk 0:01:57.2]} 24. Qe5+ {[%clk 0:01:52.6]} 24... f6 {[%clk 0:01:34.4]}
25. Qd6 {[%clk 0:01:51.5]} 25... Rc6 {[%clk 0:00:50.3]} 26. Qe7+ {[%clk
0:01:51.2]} 26... Kg8 {[%clk 0:00:48.3]} 27. Qxf6 {[%clk 0:01:46.4]} 27... Rxc5
{[%clk 0:00:49.4]} 28. Qxg6+ {[%clk 0:01:46.3]} 28... Kf8 {[%clk 0:00:50.2]} 29.
Qxh6+ {[%clk 0:01:43]} 29... Ke8 {[%clk 0:00:51.6]} 30. Qh8+ {[%clk 0:01:38.4]}
30... Ke7 {[%clk 0:00:52.9]} 31. Qg7+ {[%clk 0:01:29.7]} 31... Ke8 {[%clk
0:00:51.3]} 32. dxc5 {[%clk 0:01:27.1]} 32... Qxc5 {[%clk 0:00:49.9]} 33. Qd4
{[%clk 0:01:17.8]} 33... Qc1+ {[%clk 0:00:49.6]} 34. Kh2 {[%clk 0:01:18.4]}
34... Nc8 {[%clk 0:00:50.7]} 35. g5 {[%clk 0:01:12.1]} 35... Ne7 {[%clk
0:00:51]} 36. Qh8+ {[%clk 0:01:09.6]} 1-0

[Event "*** Titled Tuesday Blitz"]
[Site "Chess.com"]
[Date "2018.05.01"]
[Round "3"]
[White "amiralfio"]
[Black "Storne89"]
[Result "0-1"]
[WhiteElo "2349"]
[BlackElo "2530"]
[TimeControl "180+2"]
[EndTime "13:38:13 PDT"]
[Termination "Storne89 won by resignation"]

1. d4 {[%clk 0:03:01.9]} 1... Nf6 {[%clk 0:02:58.9]} 2. Nf3 {[%clk 0:02:59.1]}
2... e6 {[%clk 0:02:58.5]} 3. c4 {[%clk 0:03:00.4]} 3... a6 {[%clk 0:02:56.4]}
4. Nc3 {[%clk 0:02:57.2]} 4... d5 {[%clk 0:02:56.9]} 5. cxd5 {[%clk 0:02:56.2]}
5... exd5 {[%clk 0:02:57.9]} 6. Bg5 {[%clk 0:02:56.6]} 6... Be6 {[%clk
0:02:59.2]} 7. e3 {[%clk 0:02:55.5]} 7... Nbd7 {[%clk 0:02:59.9]} 8. Ne5 {[%clk
0:02:50.6]} 8... Be7 {[%clk 0:02:43.7]} 9. Nxd7 {[%clk 0:02:39.6]} 9... Qxd7
{[%clk 0:02:43]} 10. Bd3 {[%clk 0:02:36.1]} 10... O-O {[%clk 0:02:43.2]} 11. O-O
{[%clk 0:02:36.9]} 11... Bf5 {[%clk 0:02:42.2]} 12. Rc1 {[%clk 0:02:32]} 12...
c6 {[%clk 0:02:40]} 13. Na4 {[%clk 0:02:28.7]} 13... Bxd3 {[%clk 0:02:37.2]} 14.
Qxd3 {[%clk 0:02:28.2]} 14... Qe6 {[%clk 0:02:35.9]} 15. Nc5 {[%clk 0:02:15]}
15... Bxc5 {[%clk 0:02:36.5]} 16. Bxf6 {[%clk 0:02:15.9]} 16... Bd6 {[%clk
0:02:33.9]} 17. Bh4 {[%clk 0:02:14.7]} 17... f5 {[%clk 0:02:34.3]} 18. Bg3
{[%clk 0:02:07.1]} 18... Bxg3 {[%clk 0:02:35]} 19. hxg3 {[%clk 0:02:07.8]} 19...
Rae8 {[%clk 0:02:36.5]} 20. b4 {[%clk 0:02:02.7]} 20... Rf6 {[%clk 0:02:35.5]}
21. Rfe1 {[%clk 0:01:47]} 21... Rh6 {[%clk 0:02:27.5]} 22. f3 {[%clk 0:01:40.3]}
22... Rg6 {[%clk 0:02:25.6]} 23. Kf2 {[%clk 0:01:35.4]} 23... Qd6 {[%clk
0:02:26.6]} 24. f4 {[%clk 0:01:31.9]} 24... Re4 {[%clk 0:02:13.5]} 25. Rc5
{[%clk 0:01:16.7]} 25... Rg4 {[%clk 0:02:14.1]} 26. Qe2 {[%clk 0:01:11.5]} 26...
g5 {[%clk 0:02:10.4]} 27. Qf3 {[%clk 0:01:09.2]} 27... Qg6 {[%clk 0:02:09.4]}
28. a3 {[%clk 0:01:08.3]} 28... h5 {[%clk 0:02:07.1]} 29. Rh1 {[%clk 0:01:01.5]}
29... h4 {[%clk 0:02:06.1]} 30. Rh3 {[%clk 0:00:53.6]} 30... hxg3+ {[%clk
0:01:46.5]} 31. Rxg3 {[%clk 0:00:53.6]} 31... gxf4 {[%clk 0:01:48]} 32. Rxg4
{[%clk 0:00:51]} 32... fxg4 {[%clk 0:01:44.3]} 33. Qd1 {[%clk 0:00:45]} 33...
Rxe3 {[%clk 0:01:38.7]} 34. a4 {[%clk 0:00:42.3]} 34... Qh5 {[%clk 0:01:26.3]}
0-1

[Event "*** Titled Tuesday Blitz"]
[Site "Chess.com"]
[Date "2018.05.01"]
[Round "3"]
[White "Oleksandr_Bortnyk"]
[Black "TheCount"]
[Result "1-0"]
[WhiteElo "2781"]
[BlackElo "2549"]
[TimeControl "180+2"]
[EndTime "13:38:18 PDT"]
[Termination "Oleksandr_Bortnyk won by resignation"]

1. e4 {[%clk 0:03:01.5]} 1... e5 {[%clk 0:02:59.8]} 2. Nf3 {[%clk 0:03:01.7]}
2... Nc6 {[%clk 0:03:00.8]} 3. Bb5 {[%clk 0:03:02.1]} 3... a6 {[%clk 0:03:02.1]}
4. Ba4 {[%clk 0:03:03.2]} 4... Nf6 {[%clk 0:03:03.2]} 5. Qe2 {[%clk 0:03:03.7]}
5... b5 {[%clk 0:02:45.4]} 6. Bb3 {[%clk 0:03:03.9]} 6... Bc5 {[%clk 0:02:46.9]}
7. O-O {[%clk 0:03:03.7]} 7... d6 {[%clk 0:02:47.7]} 8. h3 {[%clk 0:03:03.2]}
8... O-O {[%clk 0:02:43.7]} 9. c3 {[%clk 0:03:01.3]} 9... Re8 {[%clk 0:02:39.3]}
10. Ng5 {[%clk 0:02:50.8]} 10... Re7 {[%clk 0:02:37.6]} 11. d3 {[%clk
0:02:49.7]} 11... h6 {[%clk 0:02:34.9]} 12. Nf3 {[%clk 0:02:50.8]} 12... Be6
{[%clk 0:02:31.6]} 13. Be3 {[%clk 0:02:51.9]} 13... Bxe3 {[%clk 0:02:28.8]} 14.
fxe3 {[%clk 0:02:52.4]} 14... d5 {[%clk 0:02:18.6]} 15. exd5 {[%clk 0:02:36.3]}
15... Nxd5 {[%clk 0:02:17.8]} 16. Bxd5 {[%clk 0:02:35.4]} 16... Qxd5 {[%clk
0:02:17.4]} 17. Nbd2 {[%clk 0:02:17.1]} 17... Rd8 {[%clk 0:02:03.3]} 18. Ne1
{[%clk 0:02:02.3]} 18... Red7 {[%clk 0:01:40]} 19. a4 {[%clk 0:01:52.1]} 19...
Ne7 {[%clk 0:01:31.1]} 20. axb5 {[%clk 0:01:44.6]} 20... axb5 {[%clk 0:01:33]}
21. Ra5 {[%clk 0:01:44.4]} 21... Qc6 {[%clk 0:01:24.9]} 22. d4 {[%clk
0:01:40.3]} 22... exd4 {[%clk 0:01:18.5]} 23. exd4 {[%clk 0:01:42.2]} 23... b4
{[%clk 0:01:03.4]} 24. Rc5 {[%clk 0:01:38.9]} 24... Qxc5 {[%clk 0:00:45.5]} 25.
dxc5 {[%clk 0:01:40.8]} 25... Rxd2 {[%clk 0:00:46.8]} 26. Qe5 {[%clk 0:01:34.2]}
26... c6 {[%clk 0:00:25.8]} 27. cxb4 {[%clk 0:01:32.1]} 27... Nd5 {[%clk
0:00:25.4]} 28. Nf3 {[%clk 0:01:29.6]} 28... Rd3 {[%clk 0:00:16.2]} 29. Nd4
{[%clk 0:01:26]} 29... Re3 {[%clk 0:00:17.6]} 30. Qh2 {[%clk 0:01:26.3]} 30...
Nxb4 {[%clk 0:00:17.2]} 31. Nxe6 {[%clk 0:01:25.9]} 31... Rxe6 {[%clk
0:00:17.7]} 32. Qf4 {[%clk 0:01:26.3]} 1-0

[Event "*** Titled Tuesday Blitz"]
[Site "Chess.com"]
[Date "2018.05.01"]
[Round "3"]
[White "bugsbunny444"]
[Black "Koksik_13"]
[Result "0-1"]
[WhiteElo "2317"]
[BlackElo "2499"]
[TimeControl "180+2"]
[EndTime "13:38:23 PDT"]
[Termination "Koksik_13 won by resignation"]

1. Nf3 {[%clk 0:03:01.9]} 1... a6 {[%clk 0:02:55.7]} 2. d4 {[%clk 0:02:57]} 2...
b5 {[%clk 0:02:57.6]} 3. Bf4 {[%clk 0:02:57.3]} 3... Bb7 {[%clk 0:02:59.5]} 4.
e3 {[%clk 0:02:58.1]} 4... d6 {[%clk 0:02:55.1]} 5. Bd3 {[%clk 0:02:57.1]} 5...
Nd7 {[%clk 0:02:54.1]} 6. O-O {[%clk 0:02:56.4]} 6... Ngf6 {[%clk 0:02:54.5]} 7.
h3 {[%clk 0:02:52.9]} 7... g6 {[%clk 0:02:46.8]} 8. a4 {[%clk 0:02:39]} 8... b4
{[%clk 0:02:44.7]} 9. Nbd2 {[%clk 0:02:39]} 9... a5 {[%clk 0:02:39.8]} 10. e4
{[%clk 0:02:27.9]} 10... Bg7 {[%clk 0:02:18.9]} 11. Qe2 {[%clk 0:02:22.6]} 11...
O-O {[%clk 0:02:17.5]} 12. Rfe1 {[%clk 0:02:08.8]} 12... c5 {[%clk 0:02:13.6]}
13. d5 {[%clk 0:02:06.5]} 13... Rc8 {[%clk 0:02:11.9]} 14. Nc4 {[%clk
0:02:06.3]} 14... Ba8 {[%clk 0:02:09.6]} 15. Qd2 {[%clk 0:01:46.2]} 15... Nb6
{[%clk 0:02:10]} 16. Bh6 {[%clk 0:01:20.4]} 16... Nxc4 {[%clk 0:02:07.9]} 17.
Bxc4 {[%clk 0:01:21.2]} 17... Nd7 {[%clk 0:02:01.9]} 18. Bxg7 {[%clk 0:01:07.1]}
18... Kxg7 {[%clk 0:02:03.8]} 19. Bb5 {[%clk 0:01:00.3]} 19... Ne5 {[%clk
0:02:02.8]} 20. Nxe5 {[%clk 0:00:48.4]} 20... dxe5 {[%clk 0:02:04.7]} 21. Rad1
{[%clk 0:00:34.7]} 21... Qd6 {[%clk 0:02:05]} 22. b3 {[%clk 0:00:22.9]} 22... f5
{[%clk 0:02:03.3]} 23. c4 {[%clk 0:00:19.7]} 23... f4 {[%clk 0:02:04.2]} 24. f3
{[%clk 0:00:14.7]} 24... g5 {[%clk 0:02:05.1]} 25. Qf2 {[%clk 0:00:15.4]} 25...
h5 {[%clk 0:02:06]} 26. Kf1 {[%clk 0:00:16.7]} 26... Rf6 {[%clk 0:02:06.8]} 27.
Ke2 {[%clk 0:00:17.4]} 27... Rcf8 {[%clk 0:02:06.2]} 28. Rg1 {[%clk 0:00:18]}
28... Bb7 {[%clk 0:02:07.8]} 29. Kd3 {[%clk 0:00:18.9]} 29... Bc8 {[%clk
0:02:08.9]} 30. Rdf1 {[%clk 0:00:17]} 30... Rh6 {[%clk 0:02:09.3]} 31. Kc2
{[%clk 0:00:09]} 31... Rfh8 {[%clk 0:02:10.8]} 32. Kb2 {[%clk 0:00:09.8]} 32...
g4 {[%clk 0:02:12.3]} 33. hxg4 {[%clk 0:00:08.6]} 33... hxg4 {[%clk 0:02:14.2]}
34. g3 {[%clk 0:00:08.9]} 34... Rh2 {[%clk 0:02:14.4]} 35. Rg2 {[%clk
0:00:10.1]} 35... Rxg2 {[%clk 0:02:14.6]} 36. Qxg2 {[%clk 0:00:11.5]} 36... Qg6
{[%clk 0:02:15.7]} 37. gxf4 {[%clk 0:00:08.9]} 37... g3 {[%clk 0:02:17.1]} 38.
f5 {[%clk 0:00:05.2]} 38... Qg5 {[%clk 0:02:18.6]} 39. Rg1 {[%clk 0:00:06]}
39... Rh2 {[%clk 0:02:13.7]} 40. Qxh2 {[%clk 0:00:03.9]} 40... gxh2 {[%clk
0:02:15.6]} 41. Rxg5+ {[%clk 0:00:05.3]} 41... Kh6 {[%clk 0:02:17.5]} 42. Rg8
{[%clk 0:00:06.5]} 42... Kh7 {[%clk 0:02:19.1]} 43. Rxc8 {[%clk 0:00:03.7]}
43... h1=Q {[%clk 0:02:20.3]} 44. Rxc5 {[%clk 0:00:04.2]} 44... Qg2+ {[%clk
0:02:19.7]} 45. Kb1 {[%clk 0:00:04.7]} 45... Qg1+ {[%clk 0:02:21.6]} 46. Kb2
{[%clk 0:00:05.6]} 46... Qxc5 {[%clk 0:02:23.5]} 0-1